Workbook

Sheet 진건
A2: 다산진건 생활대책용지 공급대상 필지내역
A4: 공급용도 | B4: 도면번호 | C4: 가구번호 | D4: 획지번호 | E4: 면적(㎡) | F4: 공급단가 (원/㎡) | G4: 공급단가 (원/3.3㎡) | H4: 공급금액(원) | I4: 건폐율(%) | J4: 용적률(%) | K4: 최고층수 | L4: 용도지역 | M4: 토지사용시기
A5: 근생용지 | B5: 근생1 | C5: ① | D5: -1 | E5: 980 | F5: =H5/E5 -> 3430000 | G5: =F5*3.3058 -> 11338894 | H5: 3361400000 | I5: 60 | J5: 300 | K5: 5 | L5: 준주거 | M5: 2017.7.31.이후
A6: 근생용지 | B6: 근생1 | C6: ① | D6: -5 | E6: 999 | F6: =H6/E6 -> 3330000 | G6: =F6*3.3058 -> 11008314 | H6: 3326670000 | I6: 60 | J6: 300 | K6: 5 | L6: 준주거 | M6: 2017.7.31.이후
A7: 근생용지 | B7: 근생2 | C7: ① | D7: -1 | E7: 925 | F7: 3360000 | G7: 11107488 | H7: 3108000000 | I7: 60 | J7: 300 | K7: 5 | L7: 준주거 | M7: 2017.7.31.이후
A8: 근생용지 | B8: 근생2 | C8: ① | D8: -2 | E8: 799 | F8: 2870000 | G8: 9487646 | H8: 2293130000 | I8: 60 | J8: 300 | K8: 5 | L8: 준주거 | M8: 2017.7.31.이후
A9: 근생용지 | B9: 근생2 | C9: ② | D9: -1 | E9: 1006 | F9: 3470000 | G9: 11471126 | H9: 3490820000 | I9: 60 | J9: 300 | K9: 5 | L9: 준주거 | M9: 2017.7.31.이후
A10: 근생용지 | B10: 근생2 | C10: ② | D10: -2 | E10: 1021 | F10: 3400000 | G10: 11239720 | H10: 3471400000 | I10: 60 | J10: 300 | K10: 5 | L10: 준주거 | M10: 2017.7.31.이후
A11: 근생용지 | B11: 근생2 | C11: ② | D11: -3 | E11: 996 | F11: 3570000 | G11: 11801706 | H11: 3555720000 | I11: 60 | J11: 300 | K11: 5 | L11: 준주거 | M11: 2017.7.31.이후
A12: 근생용지 | B12: 근생3 | C12: ① | D12: -1 | E12: 919 | F12: 3570000 | G12: 11801706 | H12: 3280830000 | I12: 60 | J12: 300 | K12: 5 | L12: 준주거 | M12: 2017.7.31.이후
A13: 근생용지 | B13: 근생3 | C13: ① | D13: -2 | E13: 951 | F13: 3400000 | G13: 11239720 | H13: 3233400000 | I13: 60 | J13: 300 | K13: 5 | L13: 준주거 | M13: 2017.7.31.이후
A14: 근생용지 | B14: 근생3 | C14: ① | D14: -3 | E14: 951 | F14: 3400000 | G14: 11239720 | H14: 3233400000 | I14: 60 | J14: 300 | K14: 5 | L14: 준주거 | M14: 2017.7.31.이후
A15: 상업용지 | B15: 상업2 | C15: ⑤ | D15: -1 | E15: 733 | F15: =H15/E15 -> 4320000 | G15: =F15*3.3058 -> 14281056 | H15: 3166560000 | I15: 70 | J15: 700 | K15: 12 | L15: 일반상업 | M15: 2017.7.31.이후
A16: 상업용지 | B16: 상업2 | C16: ⑥ | D16: -1 | E16: 806 | F16: =H16/E16 -> 4370000 | G16: =F16*3.3058 -> 14446346 | H16: 3522220000 | I16: 70 | J16: 700 | K16: 12 | L16: 일반상업 | M16: 2017.7.31.이후
A17: 상업용지 | B17: 상업2 | C17: ⑦ | D17: -1 | E17: 975 | F17: =H17/E17 -> 4510000 | G17: =F17*3.3058 -> 14909158 | H17: 4397250000 | I17: 70 | J17: 700 | K17: 12 | L17: 일반상업 | M17: 2017.7.31.이후
A18: 상업용지 | B18: 상업2 | C18: ⑦ | D18: -2 | E18: 1016 | F18: 4370000 | G18: 14446346 | H18: 4439920000 | I18: 70 | J18: 700 | K18: 12 | L18: 일반상업 | M18: 2017.7.31.이후
A19: 상업용지 | B19: 상업2 | C19: ⑦ | D19: -3 | E19: 1056 | F19: 4370000 | G19: 14446346 | H19: 4614720000 | I19: 70 | J19: 700 | K19: 12 | L19: 일반상업 | M19: 2017.7.31.이후
A20: 상업용지 | B20: 상업4 | C20: ⑤ | D20: -3 | E20: 829 | F20: 4100000 | G20: 13553780 | H20: 3398900000 | I20: 70 | J20: 500 | K20: 8 | L20: 일반상업 | M20: 2017.7.31.이후
A21: 상업용지 | B21: 상업4 | C21: ⑤ | D21: -4 | E21: 825 | F21: 4180000 | G21: 13818244 | H21: 3448500000 | I21: 70 | J21: 500 | K21: 8 | L21: 일반상업 | M21: 2017.7.31.이후
